[Event "Czech Open-Rapid 2022"]
[Site "Pardubice"]
[Date "2022.07.20"]
[Round "2.21"]
[White "Jurek, Josef"]
[Black "Vlasak, Jiri"]
[Result "1-0"]
[ECO "A13"]
[WhiteElo "2200"]
[BlackElo "1817"]
[Annotator "TA"]
[PlyCount "41"]
[EventDate "2022.07.20"]
[EventType "swiss"]
[EventCountry "CZE"]
[SourceTitle "playchess.com"]
[Source "ChessBase"]
[SourceQuality "1"]
[TimeControl "1200+10"]

{[%evp 11,41,45,55,23,27,6,55,51,52,33,97,85,113,44,169,134,225,211,285,269,287,295,357,248,244,266,277,215,389,357,667,652]} 1. Nf3 {[%emt 0:00:03]} d5 {[%emt 0:00:37]} 2. c4 {[%emt 0:00:07]} e6 {[%emt 0:00:10]} 3. g3 {[%emt 0:00:08]} c6 {[%emt 0:00:26]} 4. Bg2 {[%emt 0:00:06]} f5 {[%emt 0:00:10]} 5. O-O {[%emt 0:00:20]} Nf6 {[%emt 0:00:06]} 6. d3 {[%emt 0:00:41]} Be7 {[%emt 0:00:05]} 7. Nbd2 {[%emt 0:00:40][%cal Bb1d2,Bd2e4,Be4g5][%mdl 32] A10: English Opening: Unusual Replies for Black.} O-O {[%emt 0:00:13]} 8. Qc2 {[%emt 0:00:16]} Qe8 {[%emt 0:00:40]} (8... c5 $11) 9. e4 {[%emt 0:00:10] [#] White is slightly better.} fxe4 $146 {[%emt 0:01:04]} ({Predecessor:} 9... dxe4 10. dxe4 Nxe4 11. Nxe4 fxe4 12. Qxe4 Bf6 13. Ng5 Bxg5 14. Bxg5 e5 15. Rae1 Bf5 16. Qxe5 {1-0 (23) Tombette,P (2426)-Camilleri,H (2353) ICCF corr 1998}) 10. dxe4 {[%emt 0:00:03]} dxe4 {[%emt 0:01:06]} (10... Qg6 $14) 11. Nxe4 $16 {[%emt 0:00:11]} Nbd7 {[%emt 0:00:50][%cal Bb8d7,Bd7f6,Bf6g4][%mdl 32]} 12. Bf4 {[%emt 0:00:23] White is more active.} ({Better is} 12. Nxf6+ $16 gxf6 13. Bh6) 12... Nh5 {[%emt 0:01:28] A mistake that costs the game.} (12... Nxe4 $14 13. Qxe4 e5) 13. Bg5 {[%emt 0:02:43]} g6 {[%emt 0:00:37]} (13... Nhf6 $16 {was worth a try.} 14. Rfe1 a5) 14. Rfe1 {[%emt 0:00:43]} Ndf6 {[%emt 0:00:51]} 15. Bh6 {[%emt 0:00:35]} Ng7 {[%emt 0:02:16]} 16. Neg5 {[%emt 0:00:32]} Bc5 {[%emt 0:02:07]} 17. Re2 {[%emt 0:00:43] Bxg7 is the strong threat.} Ng4 {[%emt 0:01:31]} 18. Bxg7 {[%emt 0:00:03] Really sharp!} Kxg7 {[%emt 0:00:08]} 19. Rae1 {[%emt 0:00:58]} Rf6 $2 {[%emt 0:01:29] [#]} (19... Kg8 20. a3 a5) 20. Ne4 $18 {[%emt 0:00:37] Pair of Knights!} Rf5 {[%emt 0:00:59]} (20... Qe7 21. Nxc5 Qxc5) 21. Qc3+ {[%emt 0:01:36] Weighted Error Value: White=0.33/Black=0.63} 1-0

[Event "Czech Open-Rapid 2022"]
[Site "Pardubice"]
[Date "2022.07.20"]
[Round "2.22"]
[White "Chubar, Vladimir"]
[Black "Brejnik, Gustav"]
[Result "0-1"]
[ECO "D02"]
[WhiteElo "1809"]
[BlackElo "2292"]
[Annotator "TA"]
[PlyCount "92"]
[EventDate "2022.07.20"]
[EventType "swiss"]
[EventCountry "CZE"]
[SourceTitle "playchess.com"]
[Source "ChessBase"]
[SourceQuality "1"]
[TimeControl "1200+10"]

{[%evp 9,92,3,54,0,16,0,22,-33,-4,-6,0,0,0,-36,0,-25,0,0,18,6,43,-16,0,0,35,-57,-66,-59,-59,-87,-97,-93,-78,-81,-49,-47,-14,-22,84,91,145,138,217,216,276,150,181,143,164,0,2,0,0,0,0,0,0,-55,-5,-84,0,-13,0,0,0,-65,-57,-54,-46,-69,-16,-132,-135,-427,-413,-401,-393,-5460,-5381,-29977,-29977,-29977,-29979,-29978,-29976]} 1. Nf3 d5 {[%emt 0:00:03]} 2. d4 {[%emt 0:01:23]} Nf6 {[%emt 0:00:01]} 3. Bf4 {[%emt 0:00:31]} c5 {[%emt 0:00:02]} 4. e3 {[%emt 0:00:30]} Qb6 {[%emt 0:00:37]} 5. Nc3 {[%emt 0:00:16]} e6 (5... a6 $11) 6. Rb1 {[%emt 0:00:53] D02: 1 d4 d5 2 Nf3 sidelines, including 2...Nf6 3 g3 and 2...Nf6 3 Bf4.} Be7 {[%emt 0:01:08]} 7. Be2 {[%emt 0:01:30]} O-O {[%emt 0:00:07] [#]} 8. Bg5 $146 {[%emt 0:00:36]} (8. dxc5 $11 Qxc5 9. h3) ({Predecessor:} 8. dxc5 Bxc5 9. O-O Be7 10. Bd3 Nbd7 11. b4 a6 12. Qd2 Nh5 13. Ne2 Nxf4 14. exf4 {0-1 (55) Hasangatin,R (2485)-Derjabin,I (2345) Sochi 2018}) 8... Nc6 {[%emt 0:00:54]} 9. O-O {[%emt 0:00:28]} cxd4 {[%emt 0:00:55]} 10. exd4 {[%emt 0:00:17]} h6 {[%emt 0:00:09]} 11. Bh4 {[%emt 0:00:45]} Bd7 {[%emt 0:00:24]} (11... g5 $5 {[%cal Rg5h4]} 12. Bg3 Nh5 $11) 12. Bd3 {[%emt 0:00:49]} Rfc8 {[%emt 0:01:02]} (12... Nxd4 $2 13. Nxd4 a6 14. Re1 $18) (12... g5 $5 {[%cal Rg5h4]} 13. Bg3 Qd8 $11) 13. a3 {[%emt 0:00:34]} Be8 {[%emt 0:01:48]} (13... Nxd4 $2 14. Nxd4 Rd8 15. Nf3 $18) 14. Re1 {[%emt 0:00:31]} Rd8 {[%emt 0:00:51]} (14... Nxd4 $2 15. Nxd4 Qc5 16. Nf3 $18) 15. b4 {[%emt 0:00:23]} (15. Ne2 $14) 15... Qc7 {[%emt 0:02:38][%cal Oc6d4]} (15... Nxd4 $2 16. Nxd4 Rac8 17. Qd2 $1 $18) 16. Ne2 {[%emt 0:02:14]} Ne4 {[%emt 0:01:20]} 17. b5 {[%emt 0:01:01]} (17. c4 $14) 17... Bxh4 $15 {[%emt 0:00:10]} 18. Nxh4 {[%emt 0:00:13]} Na5 {[%emt 0:00:32]} 19. Nf3 {[%emt 0:02:40]} Nc4 {[%emt 0:00:17]} 20. Rb3 {[%emt 0:01:09]} Rac8 {[%emt 0:00:41] 0x0.0019ec1e507edp-1022s more active pieces.} 21. Ng3 {[%emt 0:01:44]} Nxg3 {[%emt 0:01:09]} 22. hxg3 {[%emt 0:00:05]} Qa5 {[%emt 0:00:10]} 23. g4 {[%emt 0:01:31]} g6 {[%emt 0:01:41]} ({Much less strong is} 23... Nxa3 24. g5 hxg5 25. Nxg5 $14) (23... Bd7 $11) 24. Qc1 $16 {[%emt 0:01:12]} Kg7 {[%emt 0:00:16]} ({Black should try} 24... g5) 25. g5 $1 {[%emt 0:00:14]} hxg5 {[%emt 0:00:37]} (25... h5 $16) 26. Qxg5 $18 {[%emt 0:00:31][%cal Od3g6] Strongly threatening Bxg6!} Rd7 {[%emt 0:01:14]} 27. Re2 {[%emt 0:00:05]} ({Not} 27. Bxc4 dxc4 28. Rbe3 Qd8 $14) (27. b6 $18) 27... Qd8 $16 {[%emt 0:00:13] [#]} 28. Qg3 {[%emt 0:00:17]} Qf6 {[%emt 0:00:16] [#]} 29. Bxc4 $2 {[%emt 0:00:20]} (29. Ne5 $1 $18) 29... dxc4 $11 {[%emt 0:00:07]} 30. Rbe3 {[%emt 0:00:10]} Rd5 $1 {[%emt 0:00:04]} 31. a4 {[%emt 0:00:06]} a6 {[%emt 0:00:12]} 32. c3 {[%emt 0:00:25]} axb5 {[%emt 0:00:02]} 33. axb5 {[%emt 0:00:02]} (33. Ne5 $11) 33... Rxb5 {[%emt 0:00:58]} (33... Bxb5 $15 34. Ne5 Bc6) 34. Ne5 {[%emt 0:00:16]} (34. Re5 $11) 34... Rb1+ {[%emt 0:00:02]} (34... Ra8 $17) 35. Re1 {[%emt 0:00:11]} Rxe1+ {[%emt 0:00:08]} 36. Rxe1 {[%emt 0:00:01]} Bc6 {[%emt 0:00:12]} 37. Ng4 {[%emt 0:00:20]} (37. Nxc4 $11 Ra8 38. f3) 37... Qg5 $15 {[%emt 0:00:27]} 38. f4 {[%emt 0:00:25]} Qf5 {[%emt 0:00:14]} 39. Ne3 {[%emt 0:00:19][%csl LRc4,LRf5]} Qd3 {[%emt 0:00:18]} ({Black should play} 39... Qb5 $15) 40. f5 {[%emt 0:00:09]} (40. Rd1 $1 $11 {was the only way to keep the balance.} Qe4 41. Re1) 40... exf5 $17 {[%emt 0:00:02] And now ...Re8 would win.} (40... Qxc3 $2 41. fxg6 Qxd4 42. gxf7+ Kxf7 43. Rf1+ Ke7 44. Qg5+ (44. Rd1 Qc5 $11) 44... Ke8 45. Qh5+ (45. Rd1 Qe4 $11) 45... Ke7 46. Qf7+ Kd6 47. Rd1 Qxd1+ 48. Nxd1 $18) 41. Qe5+ {[%emt 0:00:09][%mdl 8192]} (41. Rd1 $17 {is a better defense.} Qe4 42. Rf1) 41... Kg8 $19 {[%emt 0:00:08] Threatens to win with ...Re8.} 42. d5 {[%emt 0:00:23]} Re8 {[%emt 0:00:12]} 43. Qf6 {[%emt 0:00:50]} (43. Qd4 Bxd5 44. Kf2 Qxd4 45. cxd4) 43... Rxe3 {[%emt 0:00:19]} 44. Ra1 {[%emt 0:00:14]} Qxd5 {[%emt 0:00:14][%csl Gc6][%cal Rd5g2] Black mates.} 45. Ra8+ {[%emt 0:00:10]} Re8 {[%emt 0:00:01]} 46. Rxe8+ {[%emt 0:00:14]} Bxe8 {[%emt 0:00:02] Black used his chance.  Weighted Error Value: White=0.67/Black=0.26 (precise)} 0-1

[Event "Czech Open-Rapid 2022"]
[Site "Pardubice"]
[Date "2022.07.20"]
[Round "2.23"]
[White "Shystarova, Svitlana"]
[Black "Klimakovs, Sergejs"]
[Result "0-1"]
[ECO "B22"]
[WhiteElo "1836"]
[BlackElo "2266"]
[Annotator "TA"]
[PlyCount "86"]
[EventDate "2022.07.20"]
[EventType "swiss"]
[EventCountry "CZE"]
[SourceTitle "playchess.com"]
[Source "ChessBase"]
[SourceQuality "1"]
[TimeControl "1200+10"]

{[%evp 14,86,0,-1,0,0,7,0,9,0,0,0,0,0,0,0,0,-35,-6,-2,-8,-53,-15,-37,-12,-76,-31,-52,-58,-71,-30,-39,-26,-61,-45,-54,-64,-72,-28,-108,-67,-119,-117,-117,-132,-129,-131,-129,-107,-108,-81,-171,-176,-179,-173,-275,-260,-279,-245,-266,-233,-367,-360,-415,-401,-549,-545,-544,-539,-526,-520,-1461,-1461,-1433,-1376]} 1. e4 {[%emt 0:00:02][%cal Be2e4,Be4e5][%mdl 32]} c5 {[%emt 0:00:02]} 2. c3 {[%emt 0:00:01]} Nf6 {[%emt 0:00:02]} 3. e5 {[%emt 0:00:02]} Nd5 {[%emt 0:00:02]} 4. d4 {[%emt 0:00:01]} cxd4 {[%emt 0:00:02]} 5. cxd4 {[%emt 0:00:02]} d6 {[%emt 0:00:07]} 6. Nf3 {[%emt 0:00:46]} Nc6 {[%emt 0:00:08]} 7. Bc4 {[%emt 0:01:16]} dxe5 $1 {[%emt 0:00:02][%mdl 4] outshines the older 7...Nb6.} 8. dxe5 {[%emt 0:00:26]} Nb6 {[%emt 0:01:09] B22: Sicilian: 2 c3.} 9. Qxd8+ {[%emt 0:00:15]} Nxd8 {[%emt 0:00:02]} 10. Bb5+ {[%emt 0:00:31]} Bd7 {[%emt 0:00:39] The position is equal.} 11. Bxd7+ {[%emt 0:00:15]} Nxd7 {[%emt 0:00:02]} 12. Nc3 {[%emt 0:00:04]} Ne6 {[%emt 0:01:12]} 13. O-O {[%emt 0:00:22]} g6 {[%emt 0:05:26]} 14. Re1 {[%emt 0:00:10]} Bg7 {[%emt 0:00:04] [#]} 15. Bd2 $146 {[%emt 0:01:10]} ({Predecessor:} 15. Nd5 Rd8 16. Nf4 Nxe5 17. Nxe5 Bxe5 18. Nxe6 fxe6 19. Bh6 Bxb2 20. Rab1 Bc3 21. Rec1 {0-1 (55) Rodriguez Lopez,D (2149)-Quispe Arteaga,G (2389) Madrid 2021}) 15... O-O-O {[%emt 0:04:22][%cal Od7e5,Ba8d8,Bd8d7,Bd7d3][%mdl 32] next ...Nxe5! is good for Black.} 16. Rac1 {[%emt 0:00:32]} Kb8 {[%emt 0:00:01][%cal Od7e5]} (16... Nxe5 $2 17. Nxe5 Rhf8 18. Ne2+ Kb8 19. Bc3 $18) 17. Rc2 {[%emt 0:03:07]} Nb6 {[%emt 0:01:27]} 18. Bg5 {[%emt 0:00:52]} Rd7 {[%emt 0:00:17]} 19. h3 {[%emt 0:02:07]} (19. Nb5 $11) 19... Rhd8 {[%emt 0:00:06]} 20. Bh4 {[%emt 0:02:22]} h6 {[%emt 0:00:24]} 21. Bg3 {[%emt 0:00:12]} Rd3 {[%emt 0:00:18]} 22. Rec1 {[%emt 0:01:05]} Rc8 {[%emt 0:01:07]} 23. Ne4 {[%emt 0:00:56]} Rxc2 {[%emt 0:00:04]} 24. Rxc2 {[%emt 0:00:01]} Rd1+ {[%emt 0:00:23]} 25. Kh2 {[%emt 0:00:01]} Rd5 {[%emt 0:00:33] Against Nc5} 26. Rd2 {[%emt 0:00:38]} (26. Kg1 $11 {keeps the balance.}) 26... Kc7 {[%emt 0:00:11]} 27. Nc3 {[%emt 0:01:13]} ({White should try} 27. Re2 $15) 27... Rxd2 $17 {[%emt 0:00:11]} 28. Nxd2 {[%emt 0:00:00]} Kc6 {[%emt 0:00:16] Inhibits Nb5.} 29. f4 {[%emt 0:00:48]} Nd5 {[%emt 0:00:10]} 30. Ne2 {[%emt 0:00:31]} h5 {[%emt 0:00:35]} 31. Nf3 {[%emt 0:00:44]} Bh6 {[%emt 0:00:30][%cal Rd5f4]} 32. Nfd4+ {[%emt 0:00:30]} (32. f5 $17 gxf5 33. Nfd4+ Nxd4 34. Nxd4+ Kd7 35. Nxf5) 32... Nxd4 $19 {[%emt 0:00:19]} 33. Nxd4+ {[%emt 0:00:01][%mdl 4096] Endgame KBN-KBN} Kc5 {[%emt 0:00:38]} 34. Bf2 {[%emt 0:00:55]} (34. Nf3 $142) 34... Bxf4+ 35. g3 Be3 {[%emt 0:00:17]} 36. Nb3+ {[%emt 0:00:21]} Kb5 {[%emt 0:00:05]} 37. Be1 {[%emt 0:00:04]} (37. Bxe3 $142 Nxe3 38. Nd4+ Kb4 39. Nf3) 37... b6 {[%emt 0:00:12]} 38. Kg2 {[%emt 0:00:03]} Kc4 {[%emt 0:01:12]} 39. Kf3 {[%emt 0:00:14]} Kd3 {[%emt 0:00:02] Black is clearly winning.} 40. g4 {[%emt 0:00:14]} hxg4+ {[%emt 0:00:12]} 41. hxg4 {[%emt 0:00:01]} a5 {[%emt 0:00:22][%cal Ba7a5,Ba5a4][%mdl 32]} 42. Bh4 {[%emt 0:01:33]} (42. Bxa5 $142 bxa5 43. Nxa5) 42... a4 {[%emt 0:00:06]} 43. Na1 {[%emt 0:00:07]} Bd4 {[%emt 0:00:02][%csl LRb2,LRe5] Weighted Error Value: White=0.46/Black=0.11 (very precise)} 0-1

[Event "Czech Open-Rapid 2022"]
[Site "Pardubice"]
[Date "2022.07.20"]
[Round "2.24"]
[White "Goroshkov, Maksym"]
[Black "Shystarova, Anna"]
[Result "1-0"]
[ECO "C21"]
[WhiteElo "2240"]
[BlackElo "1856"]
[Annotator "TA"]
[PlyCount "75"]
[EventDate "2022.07.20"]
[EventType "swiss"]
[EventCountry "CZE"]
[SourceTitle "playchess.com"]
[Source "ChessBase"]
[SourceQuality "1"]
[TimeControl "1200+10"]

{[%evp 9,75,-45,0,0,0,-18,35,0,75,61,95,59,70,65,65,81,86,66,77,66,229,180,289,243,457,421,427,423,587,222,212,214,389,385,1028,464,424,293,299,289,291,290,303,262,354,341,404,395,405,400,386,387,381,377,561,554,683,674,783,785,759,670,754,739,806,808,740,709]} 1. e4 {[%emt 0:00:03]} e5 {[%emt 0:00:25]} 2. d4 {[%emt 0:00:03]} exd4 {[%emt 0:00:31]} 3. c3 {[%emt 0:00:02]} dxc3 {[%emt 0:00:30]} 4. Nxc3 {[%emt 0:00:02]} Nc6 {[%emt 0:00:34]} 5. Nf3 {[%emt 0:00:02]} d6 {[%emt 0:00:17]} 6. Bb5 {[%emt 0:00:04] C44: Ponziani Opening and Scotch Gambit.} Bd7 7. O-O {[%emt 0:00:04] [#]} Nge7 $146 {[%emt 0:01:16]} (7... Be7 $11) ({Predecessor:} 7... Nf6 8. Bg5 Be7 9. Rc1 O-O 10. Re1 Bg4 11. Bxc6 bxc6 12. Bxf6 Bxf6 13. h3 Bd7 {1-0 (44) Chaves,J (1861)-Da Silva,C (1795) Rio de Janeiro 2017}) 8. Bg5 {[%emt 0:00:15] White is slightly better.} f6 {[%emt 0:01:03]} (8... h6 $11 9. Be3 a6) 9. Be3 $16 {[%emt 0:00:16]} Ng6 {[%emt 0:02:46]} 10. Bc4 {[%emt 0:00:24]} Nge5 {[%emt 0:01:23]} 11. Nxe5 {[%emt 0:00:03] White is more active.} Nxe5 {[%emt 0:00:33]} 12. Bb3 {[%emt 0:00:04]} c6 {[%emt 0:01:42]} 13. h3 {[%emt 0:00:08][%mdl 1024] White has strong compensation.} Qe7 {[%emt 0:01:16]} 14. f4 {[%emt 0:00:43]} Ng6 {[%emt 0:00:14] [#]} (14... Nf7 $14) 15. Qf3 {[%emt 0:00:14]} a6 {[%emt 0:01:02]} (15... Kd8 $142 16. Bf2 Kc8) 16. Rac1 {[%emt 0:00:08]} Nh4 $2 {[%emt 0:02:07]} (16... a5 17. Bb6 h5) 17. Qh5+ $18 {[%emt 0:00:10]} Ng6 {[%emt 0:01:23]} 18. f5 {[%emt 0:00:03]} Bxf5 {[%emt 0:00:11]} 19. exf5 {[%emt 0:00:06]} (19. Rxf5 {Hoping for Bb6.} O-O-O 20. Rff1) 19... Qxe3+ {[%emt 0:00:14]} 20. Kh1 {[%emt 0:00:02]} O-O-O $2 {[%emt 0:00:57]} (20... Qh6 21. Qxh6 gxh6) 21. fxg6 {[%emt 0:00:02]} Qg3 $2 {[%emt 0:00:59]} (21... Qg5 22. Qxg5 fxg5 23. gxh7 Rxh7) 22. gxh7 {[%emt 0:00:44]} (22. Be6+ $142 Kb8 23. Qa5) 22... g6 {[%emt 0:00:18]} 23. Qf3 {[%emt 0:00:12]} Qxf3 {[%emt 0:00:53]} 24. Rxf3 {[%emt 0:00:01]} ({Weaker is} 24. gxf3 Rxh7 25. Kg2 Bg7 $16) 24... Rxh7 {[%emt 0:01:12]} 25. Rxf6 {[%emt 0:00:02]} g5 {[%emt 0:00:24]} 26. Rcf1 {[%emt 0:00:02]} Rh8 {[%emt 0:00:23]} 27. Ne4 {[%emt 0:00:08]} g4 {[%emt 0:00:10]} 28. Be6+ {[%emt 0:00:01]} Kb8 {[%emt 0:00:23]} 29. Bxg4 {[%emt 0:00:02]} d5 {[%emt 0:00:08]} 30. Ng5 {[%emt 0:00:08]} Be7 {[%emt 0:00:32]} 31. Rg6 {[%emt 0:00:02] [#] And now Rf7 would win.} Bxg5 {[%emt 0:00:17]} (31... Rdg8 $142) 32. Rxg5 {[%emt 0:00:01] White is clearly winning.} d4 {[%emt 0:00:00]} 33. Rg7 {[%emt 0:00:13] Inhibits Rh7. Rff7 would kill now.} Rhf8 {[%emt 0:00:46]} 34. Rxf8 {[%emt 0:00:12]} Rxf8 {[%emt 0:00:02]} 35. Rd7 {[%emt 0:00:02]} c5 {[%emt 0:00:01]} 36. Bf3 {[%emt 0:00:01]} Kc8 {[%emt 0:00:14]} 37. Rd5 {[%emt 0:00:11]} b6 {[%emt 0:00:06]} 38. b4 {[%emt 0:00:02] Black got outplayed after the opening.  Weighted Error Value: White=0.47/Black=0.67} 1-0

[Event "Czech Open-Rapid 2022"]
[Site "Pardubice"]
[Date "2022.07.20"]
[Round "2.25"]
[White "Nemec, Bohumil"]
[Black "Sarkar, Justin"]
[Result "0-1"]
[ECO "D02"]
[WhiteElo "1762"]
[BlackElo "2346"]
[Annotator "TA"]
[PlyCount "54"]
[EventDate "2022.07.20"]
[EventType "swiss"]
[EventCountry "CZE"]
[SourceTitle "playchess.com"]
[Source "ChessBase"]
[SourceQuality "1"]
[TimeControl "1200+10"]

{[%evp 13,54,-23,-20,-19,-18,-35,-38,-30,0,-48,-20,-81,-81,-75,-71,-79,-70,-100,-69,-86,-77,-107,-101,-104,-89,-100,-91,-133,-116,-256,-252,-256,-184,-314,-310,-355,-340,-833,-821,-1087,-1072,-1019,-929]} 1. d4 {[%emt 0:00:06]} Nf6 {[%emt 0:00:08]} 2. Nf3 {[%emt 0:00:04]} d5 {[%emt 0:00:04]} 3. Bf4 {[%emt 0:00:03]} c5 {[%emt 0:00:13]} 4. c3 {[%emt 0:00:06]} Qb6 {[%emt 0:00:36]} 5. Qb3 {[%emt 0:00:04]} Nc6 {[%emt 0:00:10]} 6. e3 {[%emt 0:00:10]} c4 {[%emt 0:00:11]} 7. Qxb6 {[%emt 0:00:13]} axb6 {[%emt 0:00:02]} 8. Be2 {[%emt 0:00:35] D02: 1 d4 d5 2 Nf3 sidelines, including 2...Nf6 3 g3 and 2...Nf6 3 Bf4.} b5 {[%emt 0:00:21]} 9. O-O {[%emt 0:00:12]} Bf5 {[%emt 0:03:12]} 10. Nbd2 {[%emt 0:00:30] Black is slightly better.} b4 {[%emt 0:00:03]} 11. Ne5 {[%emt 0:00:40]} (11. cxb4 $11 {is more appropriate.} Nxb4 12. Ne5) 11... e6 {[%emt 0:02:14] [#]} 12. cxb4 $146 {[%emt 0:01:27]} (12. g4 $11 Bc2 13. Rfc1) ({Predecessor:} 12. Bf3 bxc3 13. bxc3 Ba3 14. Nxc6 bxc6 15. Nxc4 dxc4 16. Bxc6+ Ke7 17. Bxa8 Rxa8 18. f3 {0-1 (29) Nechaev,O (2410)-Kezin,R (2455) Sochi 2017}) 12... Bxb4 $17 {[%emt 0:00:29]} 13. Ndf3 {[%emt 0:02:40]} Nd7 {[%emt 0:04:57][%cal Bf6d7,Bd7b6,Bb6a4][%mdl 32]} 14. a3 {[%emt 0:01:06]} Be7 {[%emt 0:00:46]} 15. h3 {[%emt 0:02:55]} f6 {[%emt 0:01:58]} 16. Nxc6 {[%emt 0:01:38]} bxc6 {[%emt 0:00:03]} 17. Rfc1 {[%emt 0:00:36]} g5 $36 {[%emt 0:00:16][%mdl 2048] Keeping White busy.} 18. Bh2 {[%emt 0:00:34]} Nb6 {[%emt 0:00:30]} 19. Bd1 {[%emt 0:01:17]} Kd7 {[%emt 0:00:36]} 20. Ne1 {[%emt 0:01:15]} Ra7 {[%emt 0:01:26] Black is more active.} 21. Bc2 {[%emt 0:00:16] This costs White the game.} (21. Ra2 $17) 21... Bxc2 $19 {[%emt 0:01:00]} 22. Rxc2 {[%emt 0:01:18]} Rha8 {[%emt 0:00:05]} 23. Rac1 {[%emt 0:00:51]} (23. Nf3 $142) 23... Na4 {[%emt 0:00:32]} 24. Nf3 {[%emt 0:01:41]} Rb7 {[%emt 0:00:14]} 25. b4 $2 {[%emt 0:00:36] [#]} (25. Bg3) 25... cxb3 {[%cal Bc4b3,Bb3b2][%mdl 32] Black is clearly winning.} 26. Rxc6 {[%emt 0:00:18]} b2 {[%emt 0:00:10]} 27. Rc7+ {[%emt 0:00:08]} Kd8 {[%emt 0:00:05] Weighted Error Value: White=0.67/Black=0.11 (very precise)} 0-1

[Event "Czech Open-Rapid 2022"]
[Site "Pardubice"]
[Date "2022.07.20"]
[Round "2.26"]
[White "Freisler, Pavel"]
[Black "Haack, Stefan"]
[Result "1-0"]
[ECO "D11"]
[WhiteElo "2256"]
[BlackElo "1757"]
[Annotator "TA"]
[PlyCount "63"]
[EventDate "2022.07.20"]
[EventType "swiss"]
[EventCountry "CZE"]
[SourceTitle "playchess.com"]
[Source "ChessBase"]
[SourceQuality "1"]
[TimeControl "1200+10"]

{[%evp 9,63,14,18,26,20,20,19,27,104,21,21,0,19,19,31,-1,57,48,57,10,60,29,93,74,108,122,159,155,169,160,143,121,119,130,380,-10,102,112,117,114,125,136,374,356,369,364,434,328,314,316,300,303,581,24,12,0]} 1. d4 {[%emt 0:00:03]} Nf6 {[%emt 0:00:08]} 2. Nf3 {[%emt 0:00:05]} d5 {[%emt 0:00:04]} 3. c4 {[%emt 0:00:04]} c6 {[%emt 0:00:03]} 4. e3 {[%emt 0:00:02]} Bg4 {[%emt 0:00:17]} 5. h3 {[%emt 0:00:04]} Bh5 {[%emt 0:00:11]} 6. g4 {[%emt 0:00:06] D11: Slav Defence: 3 Nf3 sidelines and 3...Nf6 4 e3 Bg4.} Bg6 {[%emt 0:00:02]} 7. Ne5 {[%emt 0:00:01]} e6 {[%emt 0:00:44]} 8. Nc3 {[%emt 0:00:21]} Be7 {[%emt 0:01:45]} (8... Nbd7 $11) 9. Nxg6 {[%emt 0:02:23]} (9. h4 $1 $16 {[%cal Rh4h5]}) 9... hxg6 $11 {[%emt 0:00:09]} 10. cxd5 {[%emt 0:00:25]} exd5 {[%emt 0:00:45]} 11. Bd2 {[%emt 0:00:37]} Nbd7 {[%emt 0:02:20] [#]} 12. Bd3 $146 {[%emt 0:01:04]} ({Predecessor:} 12. Bg2 Nb6 13. b3 Bd6 14. g5 Nh5 15. Qg4 Qe7 16. h4 Nf4 17. Bf1 Ne6 18. Bg2 {1-0 (43) Volodin,A (2495)-Nyback,T (2631) Puhajarve 2011}) 12... Qc7 {[%emt 0:02:22]} ({Black should play} 12... Nb6 $11) 13. Qf3 $14 {[%emt 0:00:26]} Nf8 {[%emt 0:02:44]} 14. O-O-O {[%emt 0:00:09]} (14. h4 $14 {should be considered.}) 14... Ne6 {[%emt 0:01:29]} (14... g5 $1 $11) 15. Kb1 {[%emt 0:00:31]} b5 {[%emt 0:01:14]} (15... g5 $11 {remains equal.}) 16. Rc1 {[%emt 0:00:53][%cal Oc3d5] And now Nxd5! would win.} a6 {[%emt 0:00:44]} 17. h4 {[%emt 0:00:09]} b4 {[%emt 0:01:44]} 18. Na4 {[%emt 0:01:16]} a5 {[%emt 0:00:49]} 19. b3 {[%emt 0:05:14]} Nd7 {[%emt 0:00:25]} 20. h5 {[%emt 0:00:40]} gxh5 {[%emt 0:01:05]} 21. gxh5 {[%emt 0:00:06]} Nb6 $2 {[%emt 0:00:42]} (21... Qd6 $16 22. Rc2 Nf6) 22. Nc5 $2 {[%emt 0:01:02]} (22. Bb5 $18 Nd8 23. e4 $1) 22... Nxc5 {[%emt 0:00:20]} (22... Bxc5 $11 {keeps the balance.} 23. dxc5 Nd7) 23. dxc5 $16 {[%emt 0:00:03]} Nd7 {[%emt 0:00:10] [#]} 24. e4 $1 {[%emt 0:00:13]} d4 {[%emt 0:01:26]} 25. Bf4 $36 {[%emt 0:00:31][%mdl 2048] Keeping Black busy. White is more active.} Qb7 {[%emt 0:00:28]} (25... Ne5 $16 {was called for.}) 26. Bd6 $18 {[%emt 0:01:06]} Bxd6 {[%emt 0:00:08]} 27. cxd6 {[%emt 0:00:01][%cal Oe4e5] Black must now prevent e5!} a4 {[%emt 0:00:10] Strongly threatening ...axb3.} 28. Bc4 {[%emt 0:01:13]} Ne5 {[%emt 0:00:19]} 29. Qg3 {[%emt 0:00:31][%csl LRe5,LRg7]} Nxc4 {[%emt 0:00:18]} 30. Rxc4 {[%emt 0:00:12]} ({Much less strong is} 30. bxc4 $6 O-O-O $18) 30... axb3 $2 {[%emt 0:00:48]} (30... f6 {was worth a try.} 31. Rxd4 O-O 32. bxa4 Qf7) 31. Qe5+ $2 {[%emt 0:02:27]} (31. Qxg7 $18 Rf8 32. Qe5+ Kd8 33. Qf6+ Kc8 34. axb3) 31... Kf8 $11 {[%emt 0:00:17] Hoping for ...Qa6.} 32. h6 {[%mdl 32768] Weighted Error Value: White=0.69/Black=0.60. Loss on time!?} 1-0